Workbook

Sheet 신청내역
A2: 2024년도 동물방역분야 국도비 지원사업 예산 신청내역
A3: (00 읍면)
A4: (단위 : 천원)
A5: 연번 | B5: 사업명 | C5: 지원대상 | D5: 사업내용 | E5: 사업량 | G5: 지원단가 | H5: 사업비 | I5: 재 원 별
I6: 국비 | K6: 도비 | M6: 시군비 | O6: 자부담
I7: 금액 | J7: 비율 | K7: 금액 | L7: 비율 | M7: 금액 | N7: 비율 | O7: 금액 | P7: 비율
B8: 합 계 | H8: =SUM(H9:H14) -> 35,200 | I8: =SUM(I9:I14) -> 306,615 | K8: =SUM(K9:K14) -> 3,168 | M8: =SUM(M9:M14) -> 7,392 | O8: =SUM(O9:O14) -> 14,080
A9: 1 | B9: 돼지소모성 질환지도 지원사업 | C9: 가축사육업 등록된 양돈농가 | D9: 질병, 사양 및 위생·환기·방역시설 등 기타 농장방역 관리, 농장주 및 종사자 대상 위생·방역 교육 등 컨설팅 자문비용 | E9: =돼지소모성질환!E6 -> 1 | F9: 개소 | G9: 개소당 10,000천원 | H9: =돼지소모성질환!G6 -> 10,000 | I9: =H9*J9 -> 3,000 | J9: 30% | K9: =H9*L9 -> 900 | L9: 9% | M9: =H9*N9 -> 2,100 | N9: 21% | O9: =H9*P9 -> 4,000 | P9: 40%
A10: 2 | B10: 방역인프라 설치 지원 | C10: 가축사육업 및 종축업의 허가를 받은 농가(가금, 양돈) | D10: 가금 방역시설 및 장비 돼지 방역시설 및 장비 | E10: ='방역인프라 설치 지원'!G6 -> 3 | F10: 개소 | G10: 견적가 적용 | H10: ='방역인프라 설치 지원'!I6 -> 10,500 | I10: =H10*J10 -> 2,205 | J10: 21% | K10: =H10*L10 -> 945 | L10: 9% | M10: =H10*N10 -> 2,205 | N10: 21% | O10: =H10*P10 -> 4,200 | P10: 40%
A11: 3 | B11: 가금농가 질병관리 지원 | C11: 가축사육업 등록된 가금농가 | D11: 질병 및 사양관리 컨설팅 자문 및 검사비용 | E11: ='가금농가 질병관리지원'!E6 -> 1 | F11: 개소 | G11: 개소당 10,000천원 | H11: ='가금농가 질병관리지원'!G6 -> 10,000 | I11: 300,000 | J11: 30 | K11: 900 | L11: 9% | M11: 2,100 | N11: 21% | O11: 4,000 | P11: 40%
A12: 4 | B12: 가축폐사체 수거처리비 지원 | C12: 가축사육업 등록된 양돈농가 | D12: 양돈 폐사체의 위생적인 처리를 위한 지원사업 | E12: ='가축폐사체수거처리비 지원'!E6 -> 5,000 | F12: Kg | G12: kg 300원 | H12: ='가축폐사체수거처리비 지원'!G6 -> 1,500 | I12: 450 | J12: 30% | K12: 135 | L12: 9% | M12: 315 | N12: 21% | O12: 600 | P12: 40%
A13: 5 | B13: 가축폐사체 수거함 지원 | C13: 가축사육업 등록된 양돈농가 | D13: 양돈 폐사체의 위생적인 처리를 위한 지원사업 | E13: ='가축폐사체수거함 지원'!E6 -> 3 | F13: 개 | G13: 개당 800천원 | H13: ='가축폐사체수거함 지원'!G6 -> 3,200 | I13: 960 | J13: 30% | K13: 288 | L13: 9% | M13: 672 | N13: 21% | O13: 1,280 | P13: 40%
A14: 7 | B14: 신규사업 | I14: 0 | K14: 0 | M14: 0 | O14: 0
A15: < 수요조사 시 유의사항 > • 사업별 부담비율 및 지원단가 등 도 예산심사 과정에서 조정될 수 있으며, 본 조사는 내년도 예산신청을 위한 수요조사로 내년도 사업 대상자 선정이 아님.

Sheet 돼지소모성질환
A1: 2024년 돼지소모성질환 지도 지원사업 신청내역
A3: ○ 지원단가 : 10,000천원(보조 60%, 자부담 40%)
A4: 연번 | B4: 주 소 | D4: 성 명 (대표자) | E4: 개소 | F4: 단가 (천원) | G4: 사업비 | H4: 보조금 (천원) | I4: 자부담 (천원) | J4: 비고
B5: 읍면 | C5: 도로명 주소
A6: 계 | E6: =COUNTA(E7:E9) -> 1 | G6: =SUM(G7:G9) -> 10,000 | H6: =SUM(H7:H9) -> 6,000 | I6: =SUM(I7:I9) -> 4,000
A7: 1 | E7: 1 | F7: 10,000 | G7: =E7*F7 -> 10,000 | H7: =G7*0.6 -> 6,000 | I7: =G7*0.4 -> 4,000
A8: 2 | F8: 10,000 | G8: =E8*F8 -> 0 | H8: =G8*0.6 -> 0 | I8: =G8*0.4 -> 0
A9: 3 | F9: 10,000 | G9: 0 | H9: 0 | I9: 0

Sheet 방역인프라 설치 지원
A1: 2024년 방역인프라 설치 지원사업 신청내역
A3: ○ 지원단가 : 견적가(보조 60%, 자부담 40%) 50,000천원 미만
A4: 연번 | B4: 축종 (양돈, 가금) | C4: 주 소 | E4: 성 명 (대표자) | F4: 세부내역 | G4: 개소 | H4: 단가 (천원) | I4: 사업비 (천원) | J4: 보조금 (천원) | K4: 자부담 (천원) | L4: 비고
C5: 읍면 | D5: 도로명 주소
A6: 계 | G6: =COUNTA(G7:G9) -> 3 | I6: =SUM(I7:I9) -> 10,500 | J6: =SUM(J7:J9) -> 6,300 | K6: =SUM(K7:K9) -> 4,200
A7: 1 | F7: 대인소독기 | G7: 1개소 | H7: 5,500 | I7: 5,500 | J7: =I7*0.6 -> 3,300 | K7: =I7*0.4 -> 2,200
A8: 2 | F8: 고압분무기 | G8: 1개소 | H8: 3,000 | I8: 3,000 | J8: =I8*0.6 -> 1,800 | K8: =I8*0.4 -> 1,200
A9: 3 | F9: 전실 | G9: 1개소 | H9: 2,000 | I9: 2,000 | J9: 1,200 | K9: 800

Sheet 가금농가 질병관리지원
A1: 2024년 가금농가 질병관리 지원사업 신청내역
A3: ○ 지원단가 : 10,000천원(보조 60%, 자부담 40%)
A4: 연번 | B4: 주 소 | D4: 성 명 (대표자) | E4: 개소 | F4: 단가 (천원) | G4: 사업비(천원) | H4: 보조금 (천원) | I4: 자부담 (천원) | J4: 비고
B5: 읍면 | C5: 도로명 주소
A6: 계 | E6: =COUNTA(E7:E9) -> 1 | G6: =SUM(G7:G9) -> 10,000 | H6: =SUM(H7:H9) -> 6,000 | I6: =SUM(I7:I9) -> 4,000
A7: 1 | E7: 1 | F7: 10,000 | G7: =E7*F7 -> 10,000 | H7: =G7*0.6 -> 6,000 | I7: =G7*0.4 -> 4,000
A8: 2 | F8: 10,000 | G8: =E8*F8 -> 0 | H8: =G8*0.6 -> 0 | I8: =G8*0.4 -> 0
A9: 3 | F9: 10,000 | G9: 0 | H9: 0 | I9: 0

Sheet 가축폐사체수거처리비 지원
A1: 2024년 가축폐사체 수거처리비 지원사업 신청내역
A3: ○ 지원단가 : 10,000천원(보조 60%, 자부담 40%)
A4: 연번 | B4: 주 소 | D4: 성 명 (대표자) | E4: KG | F4: 단가 (천원) | G4: 사업비(천원) | H4: 보조금 (천원) | I4: 자부담 (천원) | J4: 비고
B5: 읍면 | C5: 도로명 주소
A6: 계 | E6: =SUM(E7:E9) -> 5,000 | G6: =SUM(G7:G9) -> 1,500 | H6: =SUM(H7:H9) -> 900 | I6: =SUM(I7:I9) -> 600
A7: 1 | E7: 5,000 | F7: 0.3 | G7: =E7*F7 -> 1,500 | H7: =G7*0.6 -> 900 | I7: =G7*0.4 -> 600
A8: 2 | F8: 0.3 | H8: =G8*0.6 -> 0 | I8: =G8*0.4 -> 0
A9: 3 | F9: 0.3 | H9: 0 | I9: 0

Sheet 가축폐사체수거함 지원
A1: 2024년 가축폐사체 수거함 지원사업 신청내역
A3: ○ 지원단가 : 800천원(보조 60%, 자부담 40%)
A4: 연번 | B4: 주 소 | D4: 성 명 (대표자) | E4: 개 | F4: 단가 (천원) | G4: 사업비(천원) | H4: 보조금 (천원) | I4: 자부담 (천원) | J4: 비고
B5: 읍면 | C5: 도로명 주소
A6: 계 | E6: =COUNTA(E7:E9) -> 3 | G6: =SUM(G7:G9) -> 3,200 | H6: =SUM(H7:H9) -> 1,920 | I6: =SUM(I7:I9) -> 1,280
A7: 1 | E7: 1 | F7: 800 | G7: =E7*F7 -> 800 | H7: =G7*0.6 -> 480 | I7: =G7*0.4 -> 320
A8: 2 | E8: 2 | F8: 800 | G8: =E8*F8 -> 1,600 | H8: =G8*0.6 -> 960 | I8: =G8*0.4 -> 640
A9: 3 | E9: 1 | F9: 800 | G9: 800 | H9: 480 | I9: 320
